[Event "14th Margaryan Memorial-GM 2024"]
[Site "Yerevan"]
[Date "2024.01.15"]
[Round "8.5"]
[White "Ohanyan, Emin"]
[Black "Sorensen, Hampus"]
[Result "1-0"]
[ECO "C45"]
[WhiteElo "2456"]
[BlackElo "2458"]
[Annotator "TA"]
[PlyCount "93"]
[EventDate "2024.01.08"]
[EventType "tourn"]
[EventCountry "ARM"]
[SourceTitle "playchess.com"]
[Source "ChessBase"]
[SourceQuality "1"]
[TimeControl "40/5400+30:1800+30"]

{[%evp 11,93,17,22,14,19,12,5,0,0,0,-10,0,0,-21,-23,-21,-24,-46,-35,-72,-68,-90,-78,-84,-14,-14,-19,-12,0,0,0,0,0,0,0,0,0,0,0,0,33,0,0,0,0,-14,-15,-60,0,0,13,0,129,123,112,129,307,324,322,330,325,332,306,288,408,389,397,387,1416,1518,12835,12835,29985,29986,29986,29987,29987,11609,29993,29994,29996,29997,29997,29998]} 1. e4 {[%emt 0:06:37]} e5 {[%emt 0:00:13]} 2. Nf3 {[%emt 0:00:03]} Nc6 {[%emt 0:00:09]} 3. d4 {[%emt 0:00:34]} exd4 {[%emt 0:00:12]} 4. Nxd4 {[%emt 0:00:07]} Qf6 {[%emt 0:00:17]} 5. Be3 {[%emt 0:02:52]} Bc5 {[%emt 0:01:28]} 6. c3 {[%emt 0:01:26]} d6 {[%emt 0:02:54]} 7. Be2 {[%emt 0:03:25] C45: Scotch Game.} Qg6 {[%emt 0:02:50]} 8. O-O {[%emt 0:07:41] White wants to play Bh5.} Nf6 {[%emt 0:22:02] Inhibits Bh5.} 9. Nd2 {[%emt 0:13:32] The position is equal.} Bh3 {[%emt 0:01:46][%csl Gh3][%cal Rg6g2]} 10. Bf3 {[%emt 0:00:13]} Ne5 {[%emt 0:00:36][%cal Of6h5]} 11. Kh1 {[%emt 0:03:23]} Bd7 {[%emt 0:09:25] [#]} 12. Be2 $146 {[%emt 0:31:19]} ({Predecessor:} 12. a4 a5 13. Qe2 O-O 14. g3 Nxf3 15. Qxf3 Rae8 16. Qf4 Nxe4 17. N2f3 Re7 18. Rfe1 {0-1 Philipp,G-Jakoby,H GER-ch Seniors 13th 2001 (4)}) 12... Neg4 $1 {[%emt 0:05:12]} (12... Nxe4 13. Bh5 Nxd2 14. Bxg6 Nxf1 15. Bxf7+ Nxf7 16. Qxf1 $16) 13. Bxg4 {[%emt 0:01:53]} Nxg4 {[%emt 0:00:14]} 14. Qf3 {[%emt 0:01:54]} Nxe3 {[%emt 0:05:41]} ({But not} 14... Qh5 15. h3 $11) 15. fxe3 {[%emt 0:00:18]} O-O {[%emt 0:01:27]} 16. b4 {[%emt 0:05:51] And now Nf5 would win.} Bb6 {[%emt 0:00:19]} 17. a4 {[%emt 0:00:56]} Rae8 {[%emt 0:19:32]} (17... a6 $17) 18. a5 $11 {[%emt 0:00:32]} Bxd4 {[%emt 0:01:26]} 19. exd4 {[%emt 0:00:02]} Bc6 {[%emt 0:03:18]} 20. Rae1 {[%emt 0:00:51][%cal Ba1e1,Be1e3,Be3g3][%mdl 32]} Re7 {[%emt 0:01:45]} 21. c4 {[%emt 0:09:16]} Rfe8 {[%emt 0:08:30][%cal Rc6e4]} 22. d5 {[%emt 0:00:05]} Bd7 {[%emt 0:00:09]} 23. h3 {[%emt 0:01:01]} Re5 {[%emt 0:02:24]} 24. Qf4 {[%emt 0:02:47]} h6 {[%emt 0:04:16]} 25. Re3 {[%emt 0:01:25]} b6 {[%emt 0:00:40]} 26. axb6 {[%emt 0:01:58]} axb6 {[%emt 0:00:02]} 27. Rfe1 {[%emt 0:00:13]} f6 {[%emt 0:05:00]} 28. Ra1 {[%emt 0:03:36]} f5 {[%emt 0:00:24][%cal Rf5e4]} 29. Ra7 {[%emt 0:00:37]} Rc8 {[%emt 0:01:30]} (29... fxe4 $15 30. Qh4 (30. Rxc7 Rf8 $17) 30... R8e7) 30. Rg3 {[%emt 0:00:31]} Qf7 {[%emt 0:00:41]} 31. exf5 {[%emt 0:00:29]} (31. c5 {simplifies} bxc5 32. bxc5 fxe4 33. Qxf7+ Kxf7 34. cxd6 Rxd5 35. Nxe4 Re5 36. Nd2) 31... Rxf5 {[%emt 0:01:02]} (31... Bxf5 $11 {remains equal.} 32. Kh2 (32. Qxh6 Bxh3 33. Kg1 Bd7 $11) 32... g5) 32. Qxh6 $16 {[%emt 0:00:17] White has more active pieces.} b5 {[%emt 0:00:20] [#]} 33. cxb5 $1 {[%emt 0:00:39] Hoping for Ne4.} Bxb5 $2 {[%emt 0:00:27] [#] Black cannot hold the game after this.} (33... Rf6 $16 34. Qe3 Bxb5) 34. Rxg7+ $3 $18 {[%mdl 576] Deflection} Qxg7 {[%emt 0:00:01]} 35. Qe6+ {[%emt 0:00:33]} Rf7 {[%emt 0:00:07]} 36. Qxc8+ {[%emt 0:00:04]} Kh7 {[%emt 0:00:03]} 37. Qe6 {[%emt 0:01:16]} Bd3 {[%emt 0:01:17]} (37... Re7 {was called for.} 38. Qf5+ Qg6) 38. Qe3 {[%emt 0:00:39]} Bf5 {[%emt 0:01:11]} 39. Nf3 {[%emt 0:00:31] Black must now prevent Ng5+.} Re7 $2 {[%emt 0:00:02]} (39... Qh6 40. Qe8 Kg7) 40. Qf4 {[%emt 0:00:00]} ({Not} 40. Ng5+ Kg6 41. Ne6 Bxe6 $16) 40... Qf6 {[%emt 0:00:00]} 41. g4 {[%emt 0:18:44]} Qb2 {[%emt 0:17:00]} 42. Qxf5+ {[%emt 0:00:09]} Kg7 {[%emt 0:00:06]} 43. Qg5+ {[%emt 0:00:16]} Kf7 {[%emt 0:00:04]} 44. Qf4+ {[%emt 0:00:09]} (44. Ra8 $142 Qb1+ 45. Kh2 Qc2+ 46. Kg3 Qh7 47. Qf4+ Kg6 48. Nh4+ Qxh4+ 49. Kxh4) 44... Kg6 {[%emt 0:00:12]} 45. Nh4+ {[%emt 0:00:14] White mates.} Kh7 {[%emt 0:00:07]} 46. Qf5+ {[%emt 0:00:04]} Kg7 {[%emt 0:00:08]} 47. Qg6+ {[%emt 0:00:02] Weighted Error Value: White=0.06 (flawless) /Black=0.49} 1-0

[Event "14th Margaryan Memorial-GM 2024"]
[Site "Yerevan"]
[Date "2024.01.15"]
[Round "8.7"]
[White "Lomsadze, Davit"]
[Black "Putrenko, Kirill"]
[Result "0-1"]
[ECO "A43"]
[WhiteElo "2253"]
[BlackElo "2353"]
[Annotator "TA"]
[PlyCount "64"]
[EventDate "2024.01.08"]
[EventType "tourn"]
[EventCountry "ARM"]
[SourceTitle "playchess.com"]
[Source "ChessBase"]
[SourceQuality "1"]
[TimeControl "40/5400+30:1800+30"]

{[%evp 16,64,-10,-10,0,-1,0,-3,2,0,0,-14,0,-132,-140,-191,-182,-192,-187,-207,-192,-250,-232,-385,-366,-430,-433,-638,-648,-642,-629,-719,-629,-712,-702,-1313,-1293,-1271,-1216,-1144,-877,-29985,-29986,-29985,-29986,-29992,-29990,-29996,-29997,-29997,-29998]} 1. d4 {[%emt 0:00:02]} Nf6 {[%emt 0:00:15]} 2. Nf3 {[%emt 0:00:02]} d5 {[%emt 0:00:25]} 3. g3 {[%emt 0:00:08]} c5 {[%emt 0:00:43]} 4. Bg2 {[%emt 0:00:14]} cxd4 {[%emt 0:00:56]} 5. Nxd4 {[%emt 0:00:05]} e5 {[%emt 0:01:45]} 6. Nb3 {[%emt 0:00:01]} Nc6 {[%emt 0:05:56]} 7. Bg5 {[%emt 0:01:18]} Be6 {[%emt 0:01:39]} 8. O-O {[%emt 0:02:10]} Be7 {[%emt 0:01:49]} 9. Nc3 {[%emt 0:00:23] 9.Bxf6 might become the main line.} d4 {[%emt 0:01:58] A43: Schmid Benoni.} 10. Na4 {[%emt 0:00:44]} Bd5 {[%emt 0:09:22]} 11. Bxf6 {[%emt 0:01:30]} gxf6 {[%emt 0:01:24] The position is equal.} 12. Qd3 {[%emt 0:03:38]} Bxg2 {[%emt 0:06:34]} 13. Kxg2 {[%emt 0:03:20] [#]} Rc8 $146 {[%emt 0:14:08] ...Qd7 would be deadly.} ({Predecessor:} 13... h5 14. h3 Qd7 15. Qf3 f5 16. Nac5 e4 17. Qf4 Bxc5 18. Nxc5 Qd5 19. Nxb7 Ne7 {1-0 Garcia Martinez,M (1955)-Gonzalez Santamartina,J (1917) Villa Navarrete 2013 (3.5)}) 14. c3 {[%emt 0:00:58]} (14. Qf3 $11 {remains equal.}) 14... Qd7 $17 {[%emt 0:03:38]} 15. Qb5 {[%emt 0:04:33]} (15. Rac1 $17 Nd8 16. cxd4 Rxc1 17. Rxc1 Qxa4 18. dxe5) 15... a6 $19 {[%emt 0:01:41]} 16. Qd3 {[%emt 0:00:16]} Na7 {[%emt 0:02:35]} 17. cxd4 {[%emt 0:00:12] [#] Threatens to win with Nc3.} Qxa4 {[%emt 0:00:24]} 18. Rac1 {[%emt 0:00:45]} (18. Rfd1 $142) 18... O-O {[%emt 0:05:34][%cal Bh8f8,Bf8e8,Be8e2][%mdl 32]} ({But not} 18... Qxa2 19. Rxc8+ Nxc8 20. Qc3 $18) 19. f4 $2 {[%emt 0:00:49]} (19. Qf3 {was called for.}) 19... exd4 {[%emt 0:03:24]} (19... Qxa2 $2 20. fxe5 fxe5 21. Rxc8 Nxc8 22. dxe5 $19) 20. Qe4 {[%emt 0:02:44]} Nc6 {[%emt 0:04:51]} (20... Qxa2 21. Qxb7 d3 22. Qxa7 Qxb3 23. Rxc8 Rxc8 24. Qxe7 Qd5+ 25. Kf2) 21. Nc5 {[%emt 0:02:08]} (21. Qf3 $142) 21... Bxc5 {[%emt 0:03:51]} 22. Rxc5 {[%emt 0:00:01]} Rfe8 {[%emt 0:00:43]} 23. Qf3 {[%emt 0:00:08]} Qxa2 {[%emt 0:01:32]} 24. Qg4+ {[%emt 0:00:47]} Kf8 {[%emt 0:00:49]} 25. Qh4 {[%emt 0:00:56]} Rxe2+ {[%emt 0:00:37]} 26. Kh3 {[%emt 0:00:02]} Qe6+ {[%emt 0:02:53]} 27. f5 {[%emt 0:00:02]} Qe4 {[%emt 0:10:19]} 28. Qxf6 {[%emt 0:01:50]} Qg2+ {[%emt 0:00:16] Black mates.} (28... Rxb2 $2 {too greedy.} 29. Qh8+ Ke7 30. Qxc8 Qg2+ 31. Kh4 Qxf1 32. Qc7+ Ke8 33. Qc8+ Ke7 34. Qc7+ Kf8 35. Rxc6 Qxf5 36. Qd8+ Kg7 37. Qxd4+ f6 38. Qxb2 $19) 29. Kg4 {[%emt 0:00:02]} Qxf1 {[%emt 0:01:47]} 30. Qh8+ {[%emt 0:00:02]} Ke7 {[%emt 0:00:01]} 31. Qxc8 {[%emt 0:00:08]} Re4+ {[%emt 0:00:14]} 32. Kg5 {[%emt 0:00:08] [#]} h6+ $1 {[%emt 0:00:11] White did not feel at home in the position after the opening.   Weighted Error Value: White=0.92/Black=0.24 (precise)} 0-1

[Event "14th Margaryan Memorial-GM 2024"]
[Site "Yerevan"]
[Date "2024.01.16"]
[Round "9.1"]
[White "Sorensen, Hampus"]
[Black "Babujian, Levon"]
[Result "0-1"]
[ECO "D87"]
[WhiteElo "2458"]
[BlackElo "2346"]
[Annotator "TA"]
[PlyCount "136"]
[EventDate "2024.01.08"]
[EventType "tourn"]
[EventCountry "ARM"]
[SourceTitle "playchess.com"]
[Source "ChessBase"]
[SourceQuality "1"]
[TimeControl "40/5400+30:1800+30"]

{[%evp 22,136,49,42,46,47,22,-10,-2,-8,0,-20,2,-10,20,0,0,0,6,-7,-7,-55,-62,-72,-84,-91,-66,-75,-90,-72,-63,-83,-60,-71,-64,-73,-50,-65,0,0,0,0,0,0,0,0,0,0,0,0,0,0,0,-8,-12,-12,-12,-184,-183,-184,-184,-184,-184,-184,-184,-203,0,-97,-61,-184,-184,-184,-184,-213,0,0,0,-77,-100,-161,-14,-14,-17,-378,-339,-334,0,-6,0,-315,-176,-288,-302,-347,-344,-568,-526,-450,0,-857,-787,-5202,-6832,-8135,-2640,-4418,-1783,-3219,-979,-1753,-2381,-29968,-29973,-29985,-29985,-29986,-29987]} 1. d4 {[%emt 0:00:05]} Nf6 {[%emt 0:03:26]} 2. c4 {[%emt 0:00:12]} g6 {[%emt 0:00:08]} 3. Nc3 {[%emt 0:01:50]} d5 {[%emt 0:00:27]} 4. cxd5 {[%emt 0:02:13]} Nxd5 {[%emt 0:00:44]} 5. e4 {[%emt 0:00:20]} Nxc3 {[%emt 0:00:04]} 6. bxc3 {[%emt 0:00:03]} Bg7 {[%emt 0:00:05]} 7. Bc4 {[%emt 0:02:14]} c5 {[%emt 0:00:16]} 8. Ne2 {[%emt 0:00:06]} O-O {[%emt 0:00:10]} 9. O-O {[%emt 0:01:06]} Nc6 {[%emt 0:00:03]} 10. Be3 {[%emt 0:00:06]} Qc7 {[%emt 0:00:24]} 11. Rc1 {[%emt 0:01:25]} Rd8 {[%emt 0:00:09]} 12. Bf4 {[%emt 0:19:44] 12.Bf4 has lost popularity.} Be5 {[%emt 0:06:23] D87: Exchange Grünfeld: Classical Line: Variations without ...cxd4.} 13. Bxe5 {[%emt 0:05:19]} Nxe5 {[%emt 0:00:48][%mdl 64] Pin} 14. Qb3 {[%emt 0:11:57]} (14. Bb3 {feels hotter.} Ng4 15. Ng3 Qf4 16. h3) 14... Nxc4 {[%emt 0:02:55] The position is equal.} 15. Qxc4 {[%emt 0:00:05] [#]} b6 $146 {[%emt 0:01:54]} ({Predecessor:} 15... Bd7 16. Rfd1 Rac8 17. d5 Qa5 18. Rd2 b5 19. Qd3 Qa3 20. Qg3 Qa4 21. e5 Bf5 {½-½ Salcedo Perez,P (1937)-Quinonez Garcia,S (2089) Bogota University op 9th 2015 (4)}) 16. Rfe1 {[%emt 0:05:07]} Rb8 {[%emt 0:05:01]} 17. Rb1 {[%emt 0:10:17]} e5 {[%emt 0:04:24][%cal Ob6b5]} 18. d5 {[%emt 0:00:33]} b5 {[%emt 0:00:35]} 19. Qd3 {[%emt 0:01:22]} (19. Rxb5 Ba6 20. Qxc5 (20. Rxc5 $2 Qb6 $19) 20... Qxc5 21. Rxc5 Bxe2 $17) 19... c4 {[%emt 0:02:11]} 20. Qg3 {[%emt 0:01:10]} f5 {[%emt 0:02:33]} 21. exf5 {[%emt 0:06:11]} (21. Nd4 $2 f4 22. Nxb5 Rxb5 $19) (21. Qg5 $11) 21... Bxf5 $15 {[%emt 0:00:27]} 22. Nd4 {[%emt 0:10:45]} Bxb1 {[%emt 0:02:01]} 23. Ne6 {[%emt 0:00:04]} Qf7 {[%emt 0:08:38]} 24. Nxd8 {[%emt 0:00:04]} Rxd8 {[%emt 0:00:03]} 25. Rxb1 {[%emt 0:00:02]} Rxd5 {[%emt 0:00:14][%mdl 4096] Endgame KQR-KQR} 26. Qe3 $1 {[%emt 0:00:36]} Qf5 {[%emt 0:06:08]} 27. Rf1 {[%emt 0:00:58]} Qd7 {[%emt 0:01:46]} 28. h4 {[%emt 0:07:04]} a5 {[%emt 0:01:24]} 29. Qb6 {[%emt 0:01:45] [#]} b4 {[%emt 0:02:09]} 30. cxb4 $11 {[%emt 0:05:45]} Rb5 {[%emt 0:00:40]} 31. Qf6 {[%emt 0:01:01]} axb4 {[%emt 0:00:15]} 32. h5 $1 {[%emt 0:00:09]} Qf7 {[%emt 0:03:35]} 33. Qc6 {[%emt 0:01:32]} Rb8 {[%emt 0:06:39]} 34. hxg6 {[%emt 0:00:23]} hxg6 {[%emt 0:00:05]} 35. Rd1 {[%emt 0:00:02] Rd7 is the strong threat.} b3 {[%emt 0:01:49]} 36. axb3 {[%emt 0:00:04]} cxb3 {[%emt 0:00:02]} 37. Qd6 {[%emt 0:02:17]} Qe8 {[%emt 0:05:53]} 38. Rb1 {[%emt 0:01:15]} b2 {[%emt 0:03:41]} 39. Qd5+ $2 {[%emt 0:00:22]} (39. Qf6 $11) 39... Kg7 $19 {[%emt 0:02:04]} 40. Qd2 {[%emt 0:00:00]} Qb5 {[%emt 0:00:00]} 41. Qc3 {[%emt 0:18:08]} Rb7 {[%emt 0:16:40]} 42. Kh2 {[%emt 0:03:53]} Qe2 {[%emt 0:03:02]} 43. Kg1 {[%emt 0:00:47]} Qb5 {[%emt 0:03:06]} (43... Kh6 $19 44. f4 Qe4 45. Rxb2 Rxb2 46. Qxb2 Qxf4) 44. Kh2 $1 $17 {[%emt 0:00:10]} Kg8 {[%emt 0:00:14]} 45. Kg1 {[%emt 0:01:38]} (45. Qc8+ $1 $15 Kf7 46. Qh8) 45... Kh7 $19 {[%emt 0:04:07]} 46. Qh3+ {[%emt 0:00:24]} Kg7 {[%emt 0:00:05]} 47. Qc3 {[%emt 0:01:18] Dodges Qc5} g5 $2 {[%emt 0:01:10]} (47... Qe2 $1 $19 {...Kh6 would be deadly.} 48. f4 Qe4 49. Rxb2 Rxb2 50. Qxb2 Qxf4) 48. Qd2 {[%emt 0:01:12]} Kf6 {[%emt 0:00:40]} 49. Qd6+ {[%emt 0:02:09]} (49. Qd8+ $11 {keeps the balance.} Kf7 50. Qc8) 49... Kf7 $1 $17 {[%emt 0:00:06]} (49... Kg7 $6 50. Qd8 $11) 50. Qd2 {[%emt 0:00:17] [#]} (50. Qd1 $17) 50... e4 {[%emt 0:01:06]} (50... Qb3 $1 $19 51. Kh2 Ke6) 51. Qc2 $11 {[%emt 0:01:29]} Qe5 {[%emt 0:02:27] White must now prevent ...Kg7.} 52. Qc4+ $2 {[%emt 0:00:43][%mdl 8192]} (52. g3 $11 {and White has nothing to worry.}) 52... Kg7 {[%emt 0:00:08] And now ...Rc7 would win.} ({Worse is} 52... Qe6 53. Qc3 $17) 53. Qe2 {[%emt 0:02:39]} Qf4 $2 {[%emt 0:04:56]} ({Black should try} 53... Rb8 $19 {aiming for ...Kf6.} 54. Qd2 Kg6) 54. Qc2 {[%emt 0:01:10]} Qe5 $2 {[%emt 0:00:41][%mdl 8192]} (54... Qf6 $11) 55. Qe2 $1 $19 {[%emt 0:00:17]} Kf8 {[%emt 0:00:44] Strongly threatening ...Ke7.} 56. Qa6 {[%emt 0:02:03]} (56. g3 $142) 56... Rb5 {[%emt 0:05:06] Active counter play!} 57. Qh6+ {[%emt 0:00:34]} Ke7 {[%emt 0:00:09]} 58. Qh7+ $2 {[%emt 0:01:26]} (58. Qh3) 58... Kd6 {[%emt 0:00:06]} (58... Kf8 $2 59. Qh3 $19) 59. Qa7 {[%emt 0:00:58]} Qc3 {[%emt 0:03:06]} (59... Kc6 $19 {Threatens to win with ...Ra5.} 60. Qe3 g4) 60. Kh2 $2 {[%emt 0:02:38][%mdl 8192]} (60. Rd1+ $11 Rd5 61. Qb6+ (61. Qb8+ $2 Kc5 $19) 61... Qc6 62. Qd8+ Kc5 63. Qa5+ Kc4 64. Qa2+ Kc3 65. Rxd5 (65. Qxd5 $2 {loses.} Qxd5 66. Rxd5 b1=Q+ $19) 65... b1=Q+ 66. Qxb1 Qxd5 67. Qc1+ Kd4 68. Qe3+ Kc4 69. Qc1+ Kd4 70. Qe3+ Kc4 71. Qc1+ Kd4) 60... Qd3 {[%emt 0:01:15]} 61. Qa2 {[%emt 0:00:07]} g4 {[%emt 0:01:46]} 62. Qa6+ {[%emt 0:00:45]} Ke7 {[%emt 0:00:34]} 63. Qa7+ {[%emt 0:00:41]} Ke6 {[%emt 0:00:16]} 64. Qa2+ {[%emt 0:00:03] [#]} Kf6 $1 {[%emt 0:03:56][%cal Og4g3] ( -> ...g3+!)} 65. Qa6+ {[%emt 0:00:31]} Ke5 {[%emt 0:01:15]} 66. Qa2 {[%emt 0:00:36]} Kd4 {[%emt 0:02:13] Black mates.} 67. Kg1 {[%emt 0:01:09]} Kc3 {[%emt 0:01:32]} 68. g3 {[%emt 0:00:04]} e3 {[%emt 0:01:39] Weighted Error Value: White=0.40/Black=0.38} 0-1

[Event "14th Margaryan Memorial-GM 2024"]
[Site "Yerevan"]
[Date "2024.01.16"]
[Round "9.3"]
[White "Ivanov, Sergey"]
[Black "Agasarov, Benik"]
[Result "0-1"]
[ECO "E20"]
[WhiteElo "2462"]
[BlackElo "2340"]
[Annotator "TA"]
[PlyCount "104"]
[EventDate "2024.01.08"]
[EventType "tourn"]
[EventCountry "ARM"]
[SourceTitle "playchess.com"]
[Source "ChessBase"]
[SourceQuality "1"]
[TimeControl "40/5400+30:1800+30"]

{[%evp 15,104,-20,-10,-66,-37,-27,-26,-38,35,-27,-56,-81,-14,-35,0,0,0,10,41,54,98,39,55,44,51,0,0,0,0,8,54,47,103,81,81,81,78,-11,-10,-62,-21,-12,-20,-12,-9,-11,-13,-14,-7,-34,-36,-32,-5,-12,0,0,0,0,0,-11,0,0,0,0,0,0,0,0,0,0,41,6,89,-215,-215,-408,-408,-538,-495,-1216,-994,-2062,-2447,-1780,-1993,-12840,-12840,-12841,-12840,-12840,-12840]} 1. d4 {[%emt 0:00:03]} Nf6 {[%emt 0:00:05]} 2. c4 {[%emt 0:00:05]} e6 {[%emt 0:00:05]} 3. Nc3 {[%emt 0:00:10]} Bb4 {[%emt 0:00:07]} 4. g3 {[%emt 0:00:13]} O-O {[%emt 0:01:12]} 5. Bg2 {[%emt 0:00:05]} d5 {[%emt 0:00:19]} 6. Nf3 {[%emt 0:00:12]} dxc4 {[%emt 0:00:39]} 7. O-O {[%emt 0:00:08]} Nc6 {[%emt 0:00:08]} 8. a3 {[%emt 0:00:25] 8.Re1 is more fashionable.} Be7 {[%emt 0:07:54]} 9. e4 {[%emt 0:00:25] E20: Nimzo-Indian: 4 g3 and 4 f3.} (9. Be3 $11) 9... Rb8 {[%emt 0:10:12]} 10. Be3 {[%emt 0:01:49]} b5 {[%emt 0:05:53][%cal Bb7b5,Bb5b4][%mdl 32]} 11. Qe2 {[%emt 0:02:08] [#] Black has an edge.} Ng4 $146 {[%emt 0:05:29]} ({Better is} 11... Na5 $15) ({Predecessor:} 11... Na5 12. Rad1 Bb7 13. Ne5 Qc8 14. g4 b4 15. axb4 Bxb4 16. g5 Nd7 17. Ng4 f5 18. gxf6 Nxf6 19. Nxf6+ Rxf6 {1-0 Esipenko,A (2701)-Kobalia,M (2587) RUS-chT 28th 2021 (6.4)}) 12. Rad1 {[%emt 0:12:22]} ({White should try} 12. Bf4 $14) 12... Nxe3 {[%emt 0:00:29]} 13. Qxe3 {[%emt 0:00:09]} Bd7 {[%emt 0:04:04]} (13... b4 $17 14. axb4 Nxb4) 14. e5 {[%emt 0:11:52]} b4 {[%emt 0:01:42]} 15. d5 {[%emt 0:04:54]} exd5 {[%emt 0:19:54]} 16. Nxd5 {[%emt 0:00:18]} bxa3 {[%emt 0:00:05]} 17. bxa3 {[%emt 0:00:15]} Qe8 {[%emt 0:08:30]} 18. Qe4 {[%emt 0:04:33]} (18. Nd2 $16) 18... Bd8 {[%emt 0:04:02]} (18... Bxa3 $2 19. Ng5 f5 20. Qxc4 $18) 19. Rfe1 {[%emt 0:03:36]} (19. Nf4 {is interesting.} c3 20. Rfe1 Bg4 21. h3) 19... Ne7 {[%emt 0:03:57]} 20. Qxc4 {[%emt 0:04:35]} (20. Ne3 $14) 20... Nxd5 $11 {[%emt 0:01:39]} 21. Qxd5 {[%emt 0:00:14]} Be6 {[%emt 0:00:59]} 22. Qa5 {[%emt 0:05:43]} Rb5 {[%emt 0:05:48]} (22... Rb2 $11) 23. Qa6 $1 $14 {[%emt 0:06:19][%cal Od1d8] Rxd8! would be deadly.} ({But not} 23. Qxa7 c5 $11) 23... Bc4 {[%emt 0:05:30]} (23... c6 $14) 24. Qxa7 {[%emt 0:14:36]} c5 {[%emt 0:01:08]} 25. Qa6 {[%emt 0:04:28][%cal Oe5e6]} Ba5 {[%emt 0:04:07]} 26. Re4 {[%emt 0:05:48]} (26. a4 $16 Bxe1 27. axb5 Bxb5 28. Qd6) 26... Rb1 $11 {[%emt 0:00:18][%mdl 64] Discovered Attack} 27. Qd6 {[%emt 0:00:10] [#]} ({White should play} 27. Qxc4 $11 Rxd1+ 28. Bf1) 27... Qb8 $1 {[%emt 0:00:25] ...Qxd6 is the strong threat.} 28. Rxc4 {[%emt 0:07:12]} Qxd6 {[%emt 0:03:56]} 29. Rxb1 {[%emt 0:00:07]} Qd3 {[%emt 0:00:07][%csl LRa3,LRb1,LRc4]} 30. Rbc1 {[%emt 0:00:17]} Qxa3 {[%emt 0:00:52]} 31. Rxc5 {[%emt 0:00:15]} Bb6 {[%emt 0:00:05]} 32. R5c3 {[%emt 0:01:48]} (32. Rc6 {with more complications.} h6 33. R1c3 Qa2 34. Rc2) 32... Qa7 {[%emt 0:00:25][%mdl 1024] Black has compensation.} 33. R3c2 {[%emt 0:00:11]} h6 {[%emt 0:00:27]} 34. Bf1 {[%emt 0:00:45]} Rd8 {[%emt 0:01:09]} 35. Kg2 {[%emt 0:00:35]} g5 {[%emt 0:02:48]} 36. h3 {[%emt 0:00:10]} Kg7 {[%emt 0:00:06]} 37. Bc4 {[%emt 0:01:57]} Qb7 {[%emt 0:00:12] Strongly threatening ...h5.} 38. Bb5 {[%emt 0:02:16]} h5 {[%emt 0:02:00] And now ...g4 would win.} 39. Bc6 {[%emt 0:00:21]} Qe7 {[%emt 0:00:02]} 40. Rc4 {[%emt 0:00:00]} Rd3 {[%emt 0:00:00]} (40... Kf8 $5 {[%cal Rd8c8]}) 41. R1c2 {[%emt 0:21:15]} Rd1 $36 {[%emt 0:19:42][%mdl 2048] White is under pressure.} 42. Re4 {[%emt 0:03:38]} Qa3 {[%emt 0:07:21]} 43. Nxg5 {[%emt 0:04:36] Black should prevent h4.} Qa6 {[%emt 0:01:02]} (43... Ra1 $11) 44. Rce2 $2 {[%emt 0:03:53][%mdl 8192] [#] This move loses the game for White.} (44. Rec4 $16) 44... Bd8 $1 $19 {[%emt 0:01:02][%csl LRc6,LRg5][%mdl 64] Discovered Attack} 45. Ba4 $2 {[%emt 0:00:47]} (45. Nxf7 Qxc6 46. Nxd8 Rxd8 47. Kh2) 45... Ra1 {[%emt 0:00:04]} 46. Nxf7 {[%emt 0:04:18]} Kxf7 {[%emt 0:00:05] Black is clearly winning.} 47. e6+ {[%emt 0:00:22]} (47. Bd7 $142) 47... Ke7 {[%emt 0:00:29]} 48. Bb3 {[%emt 0:00:18]} Qc6 {[%emt 0:01:04]} 49. Bc4 {[%emt 0:01:58]} Bb6 {[%emt 0:00:48][%cal Oh5h4] White must now prevent ...h4!} 50. g4 {[%emt 0:00:36]} h4 {[%emt 0:01:36]} 51. g5 {[%emt 0:00:22]} Ra4 {[%emt 0:00:02]} 52. Bd3 {[%emt 0:00:16]} Qd5 {[%emt 0:00:06][%csl LRd3,LRg5] Beautiful play by Agasarov!   Weighted Error Value: White=0.73/Black=0.14 (very precise)} 0-1